[Event "Live Chess"]
[Site "Chess.com"]
[Date "2010.12.13"]
[Round "-"]
[White "dantime13"]
[Black "hipposcottimus"]
[Result "0-1"]
[CurrentPosition "3r2k1/ppp2ppp/8/2b1p3/2P5/1P3P2/P3BqPP/3RK3 w - -"]
[Timezone "UTC"]
[ECO "C20"]
[ECOUrl "https://www.chess.com/openings/Kings-Pawn-Opening...2.Qe2-Nc6-3.c3-Nf6-4.Nf3"]
[UTCDate "2010.12.13"]
[UTCTime "05:50:21"]
[WhiteElo "1597"]
[BlackElo "1626"]
[TimeControl "60"]
[Termination "hipposcottimus won by checkmate"]
[StartTime "05:50:21"]
[EndDate "2010.12.13"]
[EndTime "05:51:42"]
[Link "https://www.chess.com/game/live/76782311"]

1. e4 {[%clk 0:01:00]} 1... e5 {[%clk 0:01:00]} 2. Nf3 {[%clk 0:00:58.8]} 2... Nc6 {[%clk 0:00:59.6]} 3. c3 {[%clk 0:00:58.2]} 3... Nf6 {[%clk 0:00:59.3]} 4. Qe2 {[%clk 0:00:56.8]} 4... d5 {[%clk 0:00:57.7]} 5. exd5 {[%clk 0:00:55.1]} 5... Qxd5 {[%clk 0:00:56.2]} 6. c4 {[%clk 0:00:54.4]} 6... Qd6 {[%clk 0:00:55.3]} 7. b3 {[%clk 0:00:52.1]} 7... Bg4 {[%clk 0:00:54.9]} 8. Bb2 {[%clk 0:00:51.1]} 8... Bxf3 {[%clk 0:00:52.5]} 9. Qxf3 {[%clk 0:00:48.7]} 9... Be7 {[%clk 0:00:51.1]} 10. Nc3 {[%clk 0:00:47.9]} 10... O-O {[%clk 0:00:50]} 11. Rd1 {[%clk 0:00:46.5]} 11... Nd4 {[%clk 0:00:46.6]} 12. Qe3 {[%clk 0:00:43.9]} 12... Nc2+ {[%clk 0:00:45.6]} 13. Ke2 {[%clk 0:00:41.9]} 13... Nxe3 {[%clk 0:00:45.3]} 14. dxe3 {[%clk 0:00:38.9]} 14... Qb4 {[%clk 0:00:41.3]} 15. Ke1 {[%clk 0:00:32.5]} 15... Rad8 {[%clk 0:00:40.2]} 16. Rxd8 {[%clk 0:00:29.9]} 16... Rxd8 {[%clk 0:00:39.9]} 17. Be2 {[%clk 0:00:29.4]} 17... Ne4 {[%clk 0:00:37.3]} 18. f3 {[%clk 0:00:28.6]} 18... Nxc3 {[%clk 0:00:35.6]} 19. Bxc3 {[%clk 0:00:27.9]} 19... Qxc3+ {[%clk 0:00:35.3]} 20. Kf2 {[%clk 0:00:27.9]} 20... Bc5 {[%clk 0:00:30.3]} 21. Rd1 {[%clk 0:00:25.9]} 21... Qxe3+ {[%clk 0:00:28.1]} 22. Ke1 {[%clk 0:00:24.6]} 22... Qf2# {[%clk 0:00:25.8]} 0-1

[Event "Live Chess"]
[Site "Chess.com"]
[Date "2010.12.13"]
[Round "-"]
[White "hipposcottimus"]
[Black "dantime13"]
[Result "1-0"]
[CurrentPosition "5Q2/p5kp/5Rpn/8/8/1P6/4r1PP/6K1 b - -"]
[Timezone "UTC"]
[ECO "B12"]
[ECOUrl "https://www.chess.com/openings/Caro-Kann-Defense-2.d4"]
[UTCDate "2010.12.13"]
[UTCTime "05:48:07"]
[WhiteElo "1618"]
[BlackElo "1605"]
[TimeControl "60"]
[Termination "hipposcottimus won by checkmate"]
[StartTime "05:48:07"]
[EndDate "2010.12.13"]
[EndTime "05:49:53"]
[Link "https://www.chess.com/game/live/76781912"]

1. e4 {[%clk 0:01:00]} 1... c6 {[%clk 0:01:00]} 2. d4 {[%clk 0:00:53.6]} 2... b5 {[%clk 0:01:00]} 3. d5 {[%clk 0:00:52.3]} 3... Bb7 {[%clk 0:01:00]} 4. d6 {[%clk 0:00:50.7]} 4... exd6 {[%clk 0:00:58.8]} 5. Nc3 {[%clk 0:00:48.1]} 5... b4 {[%clk 0:00:57.1]} 6. Nce2 {[%clk 0:00:46.3]} 6... c5 {[%clk 0:00:56.6]} 7. f3 {[%clk 0:00:43.3]} 7... g6 {[%clk 0:00:54.6]} 8. c3 {[%clk 0:00:42.6]} 8... Bg7 {[%clk 0:00:54]} 9. cxb4 {[%clk 0:00:41.1]} 9... cxb4 {[%clk 0:00:53.4]} 10. a3 {[%clk 0:00:39.4]} 10... bxa3 {[%clk 0:00:52.2]} 11. Rxa3 {[%clk 0:00:39.1]} 11... Bf8 {[%clk 0:00:50.3]} 12. Re3 {[%clk 0:00:38.1]} 12... Bh6 {[%clk 0:00:48.1]} 13. Rd3 {[%clk 0:00:37.7]} 13... Ba6 {[%clk 0:00:46.4]} 14. Bxh6 {[%clk 0:00:36.6]} 14... Nxh6 {[%clk 0:00:44.7]} 15. Rxd6 {[%clk 0:00:35.7]} 15... f6 {[%clk 0:00:38.7]} 16. Nd4 {[%clk 0:00:33.9]} 16... O-O {[%clk 0:00:36.7]} 17. Ne6 {[%clk 0:00:32.5]} 17... Qe7 {[%clk 0:00:30.7]} 18. Nxf8 {[%clk 0:00:32.2]} 18... Qxf8 {[%clk 0:00:30.1]} 19. Bxa6 {[%clk 0:00:29.6]} 19... Nxa6 {[%clk 0:00:28.1]} 20. Rxa6 {[%clk 0:00:28.6]} 20... Rb8 {[%clk 0:00:27.4]} 21. b3 {[%clk 0:00:26.2]} 21... Re8 {[%clk 0:00:25]} 22. Ne2 {[%clk 0:00:24.9]} 22... f5 {[%clk 0:00:24.3]} 23. O-O {[%clk 0:00:23.8]} 23... fxe4 {[%clk 0:00:23.5]} 24. fxe4 {[%clk 0:00:23.6]} 24... Rxe4 {[%clk 0:00:22.8]} 25. Rxf8+ {[%clk 0:00:22.2]} 25... Kxf8 {[%clk 0:00:21.4]} 26. Qxd7 {[%clk 0:00:17.4]} 26... Rxe2 {[%clk 0:00:20]} 27. Rf6+ {[%clk 0:00:16.2]} 27... Kg8 {[%clk 0:00:16.7]} 28. Qd8+ {[%clk 0:00:15.7]} 28... Kg7 {[%clk 0:00:15.4]} 29. Qf8# {[%clk 0:00:13.2]} 1-0

[Event "Live Chess"]
[Site "Chess.com"]
[Date "2010.12.13"]
[Round "-"]
[White "dantime13"]
[Black "hipposcottimus"]
[Result "1-0"]
[CurrentPosition "R3r1k1/1r3ppp/1N6/8/1Q6/4N3/1P1BBPPP/5RK1 w - -"]
[Timezone "UTC"]
[ECO "C44"]
[ECOUrl "https://www.chess.com/openings/Ponziani-Opening-3...d5"]
[UTCDate "2010.12.13"]
[UTCTime "05:46:19"]
[WhiteElo "1613"]
[BlackElo "1610"]
[TimeControl "60"]
[Termination "dantime13 won by resignation"]
[StartTime "05:46:19"]
[EndDate "2010.12.13"]
[EndTime "05:47:48"]
[Link "https://www.chess.com/game/live/76781575"]

1. e4 {[%clk 0:01:00]} 1... e5 {[%clk 0:01:00]} 2. Nf3 {[%clk 0:00:59.4]} 2... Nc6 {[%clk 0:00:59.7]} 3. c3 {[%clk 0:00:58.9]} 3... d5 {[%clk 0:00:57.3]} 4. exd5 {[%clk 0:00:57.4]} 4... Qxd5 {[%clk 0:00:56.3]} 5. c4 {[%clk 0:00:56.8]} 5... Qe6 {[%clk 0:00:53.6]} 6. d4 {[%clk 0:00:55.8]} 6... Nf6 {[%clk 0:00:52.5]} 7. d5 {[%clk 0:00:54.7]} 7... Nxd5 {[%clk 0:00:48.9]} 8. cxd5 {[%clk 0:00:53.6]} 8... Qf5 {[%clk 0:00:47.3]} 9. dxc6 {[%clk 0:00:51.9]} 9... e4 {[%clk 0:00:47]} 10. Qe2 {[%clk 0:00:49.8]} 10... Be7 {[%clk 0:00:43.2]} 11. Nd4 {[%clk 0:00:48.9]} 11... bxc6 {[%clk 0:00:41.4]} 12. Nxf5 {[%clk 0:00:47.1]} 12... e3 {[%clk 0:00:39.8]} 13. Nxe3 {[%clk 0:00:43.7]} 13... O-O {[%clk 0:00:37.5]} 14. Qd2 {[%clk 0:00:41.3]} 14... Bb7 {[%clk 0:00:37]} 15. Be2 {[%clk 0:00:40.3]} 15... a5 {[%clk 0:00:34.5]} 16. O-O {[%clk 0:00:39.5]} 16... Bb4 {[%clk 0:00:33.6]} 17. Nc3 {[%clk 0:00:37]} 17... Rad8 {[%clk 0:00:33.2]} 18. Qc2 {[%clk 0:00:35.6]} 18... c5 {[%clk 0:00:32.8]} 19. a3 {[%clk 0:00:34.3]} 19... a4 {[%clk 0:00:32.5]} 20. axb4 {[%clk 0:00:33.1]} 20... cxb4 {[%clk 0:00:32.3]} 21. Nxa4 {[%clk 0:00:32.3]} 21... Rfe8 {[%clk 0:00:29.7]} 22. Qxc7 {[%clk 0:00:30.9]} 22... Re6 {[%clk 0:00:29.4]} 23. Qxb7 {[%clk 0:00:30]} 23... Re7 {[%clk 0:00:26.8]} 24. Qxb4 {[%clk 0:00:27.8]} 24... Rde8 {[%clk 0:00:25.9]} 25. Bd2 {[%clk 0:00:26.2]} 25... Ra8 {[%clk 0:00:25]} 26. Nb6 {[%clk 0:00:22.5]} 26... Rae8 {[%clk 0:00:24.7]} 27. Ra8 {[%clk 0:00:20.4]} 27... Rb7 {[%clk 0:00:24.1]} 1-0

[Event "Live Chess"]
[Site "Chess.com"]
[Date "2010.12.13"]
[Round "-"]
[White "hipposcottimus"]
[Black "dantime13"]
[Result "1-0"]
[CurrentPosition "r1bq1kr1/3pRQ1p/p2P2p1/1pp2p2/8/5N2/PPP2PPP/RN4K1 b - -"]
[Timezone "UTC"]
[ECO "B12"]
[ECOUrl "https://www.chess.com/openings/Caro-Kann-Defense-2.d4"]
[UTCDate "2010.12.13"]
[UTCTime "05:45:02"]
[WhiteElo "1618"]
[BlackElo "1605"]
[TimeControl "60"]
[Termination "hipposcottimus won by checkmate"]
[StartTime "05:45:02"]
[EndDate "2010.12.13"]
[EndTime "05:46:01"]
[Link "https://www.chess.com/game/live/76781292"]

1. e4 {[%clk 0:01:00]} 1... c6 {[%clk 0:01:00]} 2. d4 {[%clk 0:00:59.4]} 2... b5 {[%clk 0:01:00]} 3. d5 {[%clk 0:00:58.4]} 3... a6 {[%clk 0:01:00]} 4. d6 {[%clk 0:00:55.4]} 4... e6 {[%clk 0:00:57.7]} 5. e5 {[%clk 0:00:54.2]} 5... f6 {[%clk 0:00:56.4]} 6. Bf4 {[%clk 0:00:51.8]} 6... fxe5 {[%clk 0:00:54.8]} 7. Bxe5 {[%clk 0:00:51.5]} 7... Nh6 {[%clk 0:00:52]} 8. Nf3 {[%clk 0:00:51.2]} 8... Nf5 {[%clk 0:00:50.9]} 9. Bd3 {[%clk 0:00:49.6]} 9... c5 {[%clk 0:00:49.6]} 10. Bxf5 {[%clk 0:00:48.6]} 10... exf5 {[%clk 0:00:49.1]} 11. O-O {[%clk 0:00:47.8]} 11... g6 {[%clk 0:00:47.2]} 12. Re1 {[%clk 0:00:44.4]} 12... Nc6 {[%clk 0:00:46.5]} 13. Bf6+ {[%clk 0:00:42.6]} 13... Be7 {[%clk 0:00:41.7]} 14. Bxe7 {[%clk 0:00:41.9]} 14... Nxe7 {[%clk 0:00:40]} 15. Rxe7+ {[%clk 0:00:40.5]} 15... Kf8 {[%clk 0:00:37.9]} 16. Qd5 {[%clk 0:00:35.8]} 16... Rg8 {[%clk 0:00:34.8]} 17. Qf7# {[%clk 0:00:34.7]} 1-0

[Event "Live Chess"]
[Site "Chess.com"]
[Date "2010.12.13"]
[Round "-"]
[White "dantime13"]
[Black "hipposcottimus"]
[Result "0-1"]
[CurrentPosition "5rk1/2p2pp1/1p4q1/1P5n/1NPp2p1/1N6/5QKP/2B1R3 w - -"]
[Timezone "UTC"]
[ECO "C44"]
[ECOUrl "https://www.chess.com/openings/Ponziani-Opening-Jaenisch-Counterattack-4.d4-Nxe4-5.d5-Ne7-6.Nxe5"]
[UTCDate "2010.12.13"]
[UTCTime "05:42:50"]
[WhiteElo "1613"]
[BlackElo "1610"]
[TimeControl "60"]
[Termination "hipposcottimus won on time"]
[StartTime "05:42:50"]
[EndDate "2010.12.13"]
[EndTime "05:44:49"]
[Link "https://www.chess.com/game/live/76780842"]

1. e4 {[%clk 0:01:00]} 1... e5 {[%clk 0:01:00]} 2. Nf3 {[%clk 0:00:59.5]} 2... Nc6 {[%clk 0:00:59.7]} 3. c3 {[%clk 0:00:59]} 3... Nf6 {[%clk 0:00:59.4]} 4. d4 {[%clk 0:00:58.5]} 4... Nxe4 {[%clk 0:00:57.8]} 5. d5 {[%clk 0:00:56.6]} 5... Ne7 {[%clk 0:00:56.7]} 6. Nxe5 {[%clk 0:00:55.3]} 6... d6 {[%clk 0:00:56.1]} 7. Nd3 {[%clk 0:00:53.4]} 7... Nf6 {[%clk 0:00:54.4]} 8. Be2 {[%clk 0:00:52.6]} 8... Nexd5 {[%clk 0:00:53.7]} 9. O-O {[%clk 0:00:51.5]} 9... Be6 {[%clk 0:00:53.3]} 10. Bf3 {[%clk 0:00:50.1]} 10... Be7 {[%clk 0:00:52.7]} 11. Bxd5 {[%clk 0:00:45.1]} 11... Bxd5 {[%clk 0:00:51.4]} 12. Re1 {[%clk 0:00:45.1]} 12... O-O {[%clk 0:00:49.9]} 13. Nf4 {[%clk 0:00:44.4]} 13... Bc6 {[%clk 0:00:48.4]} 14. b4 {[%clk 0:00:38.8]} 14... Ne4 {[%clk 0:00:48]} 15. f3 {[%clk 0:00:36.5]} 15... Nf6 {[%clk 0:00:40.9]} 16. g4 {[%clk 0:00:34.5]} 16... d5 {[%clk 0:00:36]} 17. a4 {[%clk 0:00:31.8]} 17... b6 {[%clk 0:00:34.2]} 18. b5 {[%clk 0:00:31.2]} 18... Bb7 {[%clk 0:00:33.4]} 19. Nd2 {[%clk 0:00:30.2]} 19... a6 {[%clk 0:00:32.7]} 20. Nb3 {[%clk 0:00:28.9]} 20... axb5 {[%clk 0:00:31.8]} 21. axb5 {[%clk 0:00:28.3]} 21... Rxa1 {[%clk 0:00:29.1]} 22. Nxa1 {[%clk 0:00:28.3]} 22... Bc5+ {[%clk 0:00:27.9]} 23. Kg2 {[%clk 0:00:25.7]} 23... d4 {[%clk 0:00:26.6]} 24. c4 {[%clk 0:00:22.1]} 24... h5 {[%clk 0:00:21.4]} 25. Nd3 {[%clk 0:00:20.5]} 25... Bd6 {[%clk 0:00:19.5]} 26. Nb3 {[%clk 0:00:18.2]} 26... Bxf3+ {[%clk 0:00:18.7]} 27. Kxf3 {[%clk 0:00:16.3]} 27... hxg4+ {[%clk 0:00:18.3]} 28. Kg2 {[%clk 0:00:11.6]} 28... Bb4 {[%clk 0:00:17.9]} 29. Nxb4 {[%clk 0:00:10.2]} 29... Qd6 {[%clk 0:00:16.3]} 30. Qd2 {[%clk 0:00:07.7]} 30... Nh5 {[%clk 0:00:13.6]} 31. Qf2 {[%clk 0:00:04]} 31... Qg6 {[%clk 0:00:13.2]} 0-1

[Event "Live Chess"]
[Site "Chess.com"]
[Date "2010.12.13"]
[Round "-"]
[White "dantime13"]
[Black "hipposcottimus"]
[Result "1-0"]
[CurrentPosition "4R1k1/5ppp/1p6/2p5/pNP5/4P3/PPK3PP/7R b - -"]
[Timezone "UTC"]
[ECO "C44"]
[ECOUrl "https://www.chess.com/openings/Ponziani-Opening-Jaenisch-Breyer-Opening-4...d5"]
[UTCDate "2010.12.13"]
[UTCTime "05:40:27"]
[WhiteElo "1613"]
[BlackElo "1610"]
[TimeControl "60"]
[Termination "dantime13 won by checkmate"]
[StartTime "05:40:27"]
[EndDate "2010.12.13"]
[EndTime "05:42:00"]
[Link "https://www.chess.com/game/live/76780410"]

1. e4 {[%clk 0:01:00]} 1... e5 {[%clk 0:01:00]} 2. Nf3 {[%clk 0:00:59.4]} 2... Nc6 {[%clk 0:00:59.7]} 3. c3 {[%clk 0:00:58.2]} 3... Nf6 {[%clk 0:00:59.3]} 4. d3 {[%clk 0:00:57.3]} 4... d5 {[%clk 0:00:59]} 5. exd5 {[%clk 0:00:55.6]} 5... Nxd5 {[%clk 0:00:58.7]} 6. c4 {[%clk 0:00:54.6]} 6... Bb4+ {[%clk 0:00:55.1]} 7. Bd2 {[%clk 0:00:51.8]} 7... Nf4 {[%clk 0:00:53.5]} 8. Bxb4 {[%clk 0:00:49.4]} 8... Nxb4 {[%clk 0:00:53.3]} 9. Qd2 {[%clk 0:00:48.8]} 9... O-O {[%clk 0:00:50.3]} 10. Qxb4 {[%clk 0:00:47.3]} 10... Qxd3 {[%clk 0:00:46.8]} 11. Bxd3 {[%clk 0:00:44.6]} 11... Nxd3+ {[%clk 0:00:46.5]} 12. Kd2 {[%clk 0:00:42]} 12... Nxb4 {[%clk 0:00:46.2]} 13. Nc3 {[%clk 0:00:39.9]} 13... Nc6 {[%clk 0:00:45.9]} 14. Kc2 {[%clk 0:00:38.8]} 14... Bf5+ {[%clk 0:00:45.5]} 15. Kb3 {[%clk 0:00:35.5]} 15... Rfe8 {[%clk 0:00:45.2]} 16. Rad1 {[%clk 0:00:34.1]} 16... e4 {[%clk 0:00:44.4]} 17. Ne1 {[%clk 0:00:29.5]} 17... Na5+ {[%clk 0:00:44.1]} 18. Kb4 {[%clk 0:00:27.6]} 18... Nc6+ {[%clk 0:00:40.9]} 19. Kb3 {[%clk 0:00:26.3]} 19... a5 {[%clk 0:00:40.1]} 20. Nd5 {[%clk 0:00:25.3]} 20... a4+ {[%clk 0:00:39.3]} 21. Kc3 {[%clk 0:00:23.3]} 21... Rad8 {[%clk 0:00:33.3]} 22. Nc2 {[%clk 0:00:19.8]} 22... e3 {[%clk 0:00:31.6]} 23. fxe3 {[%clk 0:00:18.4]} 23... Bxc2 {[%clk 0:00:30.5]} 24. Kxc2 {[%clk 0:00:16.9]} 24... Nb4+ {[%clk 0:00:29.9]} 25. Nxb4 {[%clk 0:00:15]} 25... c5 {[%clk 0:00:29.6]} 26. Rxd8 {[%clk 0:00:13.1]} 26... b6 {[%clk 0:00:29.4]} 27. Rxe8# {[%clk 0:00:11]} 1-0

[Event "Live Chess"]
[Site "Chess.com"]
[Date "2010.12.13"]
[Round "-"]
[White "kublitz44"]
[Black "hipposcottimus"]
[Result "0-1"]
[CurrentPosition "8/8/2K3k1/1p1p1RP1/1PbP3b/4P3/8/8 w - -"]
[Timezone "UTC"]
[ECO "D02"]
[ECOUrl "https://www.chess.com/openings/Queens-Pawn-Opening-Zukertort-Variation-2...c6-3.Bg5"]
[UTCDate "2010.12.13"]
[UTCTime "05:37:52"]
[WhiteElo "1575"]
[BlackElo "1618"]
[TimeControl "60"]
[Termination "hipposcottimus won on time"]
[StartTime "05:37:52"]
[EndDate "2010.12.13"]
[EndTime "05:40:01"]
[Link "https://www.chess.com/game/live/76779907"]

1. d4 {[%clk 0:01:00]} 1... d5 {[%clk 0:01:00]} 2. Nf3 {[%clk 0:00:59.4]} 2... c6 {[%clk 0:00:59.6]} 3. Bg5 {[%clk 0:00:59]} 3... Nd7 {[%clk 0:00:58.2]} 4. e3 {[%clk 0:00:57.7]} 4... f6 {[%clk 0:00:55.5]} 5. Bh4 {[%clk 0:00:56.4]} 5... e6 {[%clk 0:00:55.3]} 6. Bd3 {[%clk 0:00:55.2]} 6... Ne7 {[%clk 0:00:55.1]} 7. O-O {[%clk 0:00:53.4]} 7... Nf5 {[%clk 0:00:51.6]} 8. Bg3 {[%clk 0:00:51.8]} 8... Nxg3 {[%clk 0:00:50.2]} 9. fxg3 {[%clk 0:00:51.1]} 9... Be7 {[%clk 0:00:49.9]} 10. c3 {[%clk 0:00:49.7]} 10... O-O {[%clk 0:00:49.6]} 11. Qc2 {[%clk 0:00:49.1]} 11... f5 {[%clk 0:00:49.4]} 12. Ne5 {[%clk 0:00:46.7]} 12... Nf6 {[%clk 0:00:49]} 13. Nd2 {[%clk 0:00:40.3]} 13... Ng4 {[%clk 0:00:48.5]} 14. Nxg4 {[%clk 0:00:38.7]} 14... fxg4 {[%clk 0:00:47.8]} 15. Bxh7+ {[%clk 0:00:37.7]} 15... Kh8 {[%clk 0:00:46.3]} 16. Qg6 {[%clk 0:00:36.9]} 16... Rf6 {[%clk 0:00:43.2]} 17. Qxg4 {[%clk 0:00:35.8]} 17... e5 {[%clk 0:00:41.2]} 18. Rxf6 {[%clk 0:00:34.2]} 18... Bxg4 {[%clk 0:00:37.8]} 19. Rf2 {[%clk 0:00:24.6]} 19... Bh5 {[%clk 0:00:36.5]} 20. Nf3 {[%clk 0:00:23.1]} 20... g6 {[%clk 0:00:34.9]} 21. Bxg6 {[%clk 0:00:21.9]} 21... Bxg6 {[%clk 0:00:33.4]} 22. Nxe5 {[%clk 0:00:21.2]} 22... Bh7 {[%clk 0:00:32.1]} 23. Nf7+ {[%clk 0:00:19.8]} 23... Kg7 {[%clk 0:00:30]} 24. Nxd8 {[%clk 0:00:19.8]} 24... Rxd8 {[%clk 0:00:29.7]} 25. Raf1 {[%clk 0:00:19.5]} 25... Rf8 {[%clk 0:00:29.1]} 26. Rxf8 {[%clk 0:00:18.1]} 26... Bxf8 {[%clk 0:00:28.9]} 27. g4 {[%clk 0:00:17.3]} 27... Be7 {[%clk 0:00:27.7]} 28. h3 {[%clk 0:00:16.7]} 28... Bg5 {[%clk 0:00:26.9]} 29. Kf2 {[%clk 0:00:15.4]} 29... Bd3 {[%clk 0:00:24.4]} 30. Re1 {[%clk 0:00:13.9]} 30... Bc4 {[%clk 0:00:24.1]} 31. g3 {[%clk 0:00:12.9]} 31... Bxa2 {[%clk 0:00:23.2]} 32. b4 {[%clk 0:00:12.1]} 32... Bc4 {[%clk 0:00:22.3]} 33. h4 {[%clk 0:00:10.9]} 33... Bf6 {[%clk 0:00:20.8]} 34. Kf3 {[%clk 0:00:10]} 34... Bd8 {[%clk 0:00:19.7]} 35. Kf4 {[%clk 0:00:10]} 35... b6 {[%clk 0:00:19.2]} 36. g5 {[%clk 0:00:09.4]} 36... Bc7+ {[%clk 0:00:18.2]} 37. Kf5 {[%clk 0:00:08.4]} 37... a5 {[%clk 0:00:17.9]} 38. Ke6 {[%clk 0:00:07.3]} 38... axb4 {[%clk 0:00:16.9]} 39. cxb4 {[%clk 0:00:06.5]} 39... b5 {[%clk 0:00:15.1]} 40. Kd7 {[%clk 0:00:05.6]} 40... Bb8 {[%clk 0:00:14.1]} 41. Kxc6 {[%clk 0:00:04.9]} 41... Bxg3 {[%clk 0:00:13.8]} 42. Rf1 {[%clk 0:00:02.4]} 42... Bxh4 {[%clk 0:00:13.4]} 43. Rf5 {[%clk 0:00:00.5]} 43... Kg6 {[%clk 0:00:12.8]} 0-1

[Event "Live Chess"]
[Site "Chess.com"]
[Date "2010.12.13"]
[Round "-"]
[White "MisterOtisBDriftwood"]
[Black "hipposcottimus"]
[Result "1-0"]
[CurrentPosition "5r2/p4pkp/8/8/N1p5/K5P1/P3r2P/8 b - -"]
[Timezone "UTC"]
[ECO "C23"]
[ECOUrl "https://www.chess.com/openings/Bishops-Opening-2...Nc6-3.d3-Nf6"]
[UTCDate "2010.12.13"]
[UTCTime "05:35:00"]
[WhiteElo "1521"]
[BlackElo "1611"]
[TimeControl "60"]
[Termination "MisterOtisBDriftwood won on time"]
[StartTime "05:35:00"]
[EndDate "2010.12.13"]
[EndTime "05:37:17"]
[Link "https://www.chess.com/game/live/76779366"]

1. e4 {[%clk 0:01:00]} 1... e5 {[%clk 0:01:00]} 2. Bc4 {[%clk 0:00:59.4]} 2... Nc6 {[%clk 0:00:58.9]} 3. d3 {[%clk 0:00:58.8]} 3... Nf6 {[%clk 0:00:57.9]} 4. Be3 {[%clk 0:00:58.5]} 4... d5 {[%clk 0:00:57.4]} 5. exd5 {[%clk 0:00:56.2]} 5... Nxd5 {[%clk 0:00:57.2]} 6. Nf3 {[%clk 0:00:55.1]} 6... Be6 {[%clk 0:00:55]} 7. Bxd5 {[%clk 0:00:53]} 7... Bxd5 {[%clk 0:00:52.9]} 8. c4 {[%clk 0:00:52.7]} 8... Be6 {[%clk 0:00:50.3]} 9. b4 {[%clk 0:00:51.9]} 9... Bxb4+ {[%clk 0:00:46.7]} 10. Bd2 {[%clk 0:00:49]} 10... O-O {[%clk 0:00:45.6]} 11. Bxb4 {[%clk 0:00:47.5]} 11... Nxb4 {[%clk 0:00:45.3]} 12. Qd2 {[%clk 0:00:47.2]} 12... Nxd3+ {[%clk 0:00:43.8]} 13. Ke2 {[%clk 0:00:42.8]} 13... Bxc4 {[%clk 0:00:43.3]} 14. Kd1 {[%clk 0:00:37]} 14... Nxf2+ {[%clk 0:00:33.8]} 15. Kc1 {[%clk 0:00:31.9]} 15... Nd3+ {[%clk 0:00:25.7]} 16. Kc2 {[%clk 0:00:29.5]} 16... Qd6 {[%clk 0:00:23.4]} 17. Nc3 {[%clk 0:00:27.3]} 17... Nb4+ {[%clk 0:00:16.4]} 18. Kc1 {[%clk 0:00:24.7]} 18... Qxd2+ {[%clk 0:00:14.7]} 19. Kxd2 {[%clk 0:00:23.8]} 19... Rad8+ {[%clk 0:00:13.7]} 20. Kc1 {[%clk 0:00:21.2]} 20... e4 {[%clk 0:00:13.3]} 21. Nd2 {[%clk 0:00:16.5]} 21... Bd3 {[%clk 0:00:12.9]} 22. Kb2 {[%clk 0:00:14.5]} 22... Nc6 {[%clk 0:00:12.6]} 23. Nc4 {[%clk 0:00:13]} 23... Ne5 {[%clk 0:00:12.2]} 24. Nxe5 {[%clk 0:00:11.9]} 24... Rd4 {[%clk 0:00:11]} 25. Nxd3 {[%clk 0:00:11]} 25... exd3 {[%clk 0:00:09.3]} 26. Rad1 {[%clk 0:00:10.5]} 26... Rb4+ {[%clk 0:00:08.9]} 27. Ka3 {[%clk 0:00:09.4]} 27... Rb6 {[%clk 0:00:08]} 28. Rxd3 {[%clk 0:00:08.6]} 28... Ra6+ {[%clk 0:00:07.7]} 29. Na4 {[%clk 0:00:06.5]} 29... c5 {[%clk 0:00:07.4]} 30. Rb3 {[%clk 0:00:05.7]} 30... b5 {[%clk 0:00:06.8]} 31. Rxb5 {[%clk 0:00:04.6]} 31... c4 {[%clk 0:00:06.4]} 32. Rb7 {[%clk 0:00:04]} 32... Rb6 {[%clk 0:00:04.5]} 33. Rf1 {[%clk 0:00:03.1]} 33... Rxb7 {[%clk 0:00:02.9]} 34. Rf3 {[%clk 0:00:02.8]} 34... Re7 {[%clk 0:00:02.6]} 35. Rg3 {[%clk 0:00:02.5]} 35... Re2 {[%clk 0:00:01.8]} 36. Rxg7+ {[%clk 0:00:02.2]} 36... Kxg7 {[%clk 0:00:00.1]} 37. g3 {[%clk 0:00:01.8]} 1-0

[Event "Live Chess"]
[Site "Chess.com"]
[Date "2010.12.13"]
[Round "-"]
[White "hipposcottimus"]
[Black "chiefjustice"]
[Result "0-1"]
[CurrentPosition "r2q1rk1/p1p2ppp/1p1n4/8/2p1b3/P4N2/3R1PPP/R2Q2K1 w - -"]
[Timezone "UTC"]
[ECO "C51"]
[ECOUrl "https://www.chess.com/openings/Giuoco-Piano-Game-Evans-Accepted-McDonnell-Defense-6.O-O"]
[UTCDate "2010.12.13"]
[UTCTime "04:45:34"]
[WhiteElo "1433"]
[BlackElo "1416"]
[TimeControl "300+3"]
[Termination "chiefjustice won by resignation"]
[StartTime "04:45:34"]
[EndDate "2010.12.13"]
[EndTime "04:51:18"]
[Link "https://www.chess.com/game/live/76769831"]

1. e4 {[%clk 0:05:00]} 1... e5 {[%clk 0:05:00]} 2. Nf3 {[%clk 0:04:59.2]} 2... Nc6 {[%clk 0:05:00.4]} 3. Bc4 {[%clk 0:04:55.7]} 3... Bc5 {[%clk 0:05:01]} 4. b4 {[%clk 0:04:52.5]} 4... Bxb4 {[%clk 0:04:55.1]} 5. c3 {[%clk 0:04:50]} 5... Bc5 {[%clk 0:04:43.3]} 6. O-O {[%clk 0:04:50.5]} 6... Nf6 {[%clk 0:04:41.9]} 7. d4 {[%clk 0:04:51.2]} 7... exd4 {[%clk 0:04:41.3]} 8. cxd4 {[%clk 0:04:51.5]} 8... Bb4 {[%clk 0:04:42]} 9. Bb2 {[%clk 0:04:24.2]} 9... O-O {[%clk 0:04:40.6]} 10. Bc3 {[%clk 0:04:22.1]} 10... Nxe4 {[%clk 0:04:39.6]} 11. Bxb4 {[%clk 0:04:20.1]} 11... Nxb4 {[%clk 0:04:39.2]} 12. Re1 {[%clk 0:04:17.5]} 12... d5 {[%clk 0:04:31]} 13. a3 {[%clk 0:04:03]} 13... dxc4 {[%clk 0:04:30.1]} 14. Rxe4 {[%clk 0:03:59.5]} 14... Nc6 {[%clk 0:04:29.2]} 15. d5 {[%clk 0:03:59.4]} 15... Ne7 {[%clk 0:04:25.4]} 16. Nc3 {[%clk 0:03:50.1]} 16... b6 {[%clk 0:04:14]} 17. Rd4 {[%clk 0:03:05.2]} 17... Bb7 {[%clk 0:04:06]} 18. d6 {[%clk 0:03:05.4]} 18... Nf5 {[%clk 0:03:48.3]} 19. Rd2 {[%clk 0:02:56.8]} 19... Nxd6 {[%clk 0:03:39.2]} 20. Ne4 {[%clk 0:02:50.6]} 20... Bxe4 {[%clk 0:03:36.2]} 0-1